fUST/lending_fUST_20251118
["ID","MTS","AMOUNT","RATE_DAILY","PERIOD"]
[394230014,1763398238568,-246.0,0.00027999,2]
[394230015,1763398238577,-1479.06,0.00028,14]
[394230016,1763398238586,-12959.5,0.00028,7]
[394230017,1763398238595,-10054.24776066,0.00028085,2]
[394230018,1763398238604,-1076.46506998,0.00028471,2]
[394230019,1763398238613,-2150.0,0.00028552,2]
[394230020,1763398238622,-988.0,0.00028552,2]
[394230021,1763398238631,-629.0,0.00028552,2]
[394230022,1763398238640,-413.0,0.00028552,2]
[394230023,1763398238649,-413.0,0.00028552,2]
[394230024,1763398238658,-700.43839519,0.00030561,2]
[394230025,1763398238667,-176.52153032,0.00031085,2]
[394230026,1763398238676,-187.653,0.00031348,29]
[394230027,1763398238685,-2150.0,0.00031552,2]
[394230028,1763398238694,-988.0,0.00031552,2]
[394230029,1763398238703,-629.0,0.00031552,2]
[394230030,1763398238713,-413.0,0.00031552,2]
[394230031,1763398238722,-413.0,0.00031552,2]
[394230032,1763398238731,-500.0,0.00032389,7]
[394230033,1763398238741,-166.95155348,0.00032497,2]
[394230034,1763398238751,-1076.46506998,0.00032557,2]
[394230035,1763398238760,-610.69848663,0.00032877,7]
[394230036,1763398238770,-155.3,0.00033,7]
[394230037,1763398238779,-181.77634872,0.000332,117]
[394230038,1763398238789,-2000.0,0.00033887,7]
[394230039,1763398238798,-500.0,0.00034204,7]
[394230040,1763398238807,-500.0,0.00034275,7]
[394230041,1763398238817,-984.76,0.000343,14]
[394230042,1763398238826,-500.0,0.00034341,7]
[394230043,1763398238835,-176.52153032,0.00034485,2]
[394230044,1763398238844,-2150.0,0.00034552,2]
[394230045,1763398238853,-988.0,0.00034552,2]
[394230046,1763398238868,-629.0,0.00034552,2]
[394230047,1763398238876,-413.0,0.00034552,2]
[394230048,1763398238886,-413.0,0.00034552,2]
[394230049,1763398238895,-159.52493041,0.00034678,10]
[394230050,1763398238906,-1260.78911135,0.00034895,2]
[394230051,1763398238915,-158.0,0.00035,120]
[394230052,1763398238924,-500.0,0.00035077,30]
[394230053,1763398238933,-184.58611826,0.00035123,5]
[394230054,1763398238944,-500.0,0.00035195,30]
[394230055,1763398238953,-1093.45,0.00035524,10]
[394230056,1763398238963,-737.60612858,0.00035534,5]
[394230057,1763398238971,-1280.59040537,0.0003559,3]
[394230058,1763398238980,-1479.06,0.000356,30]
[394230059,1763398238991,-12959.5,0.000356,14]
[394230060,1763398239001,-159.52493041,0.0003575,10]
[394230061,1763398239010,-500.0,0.00035966,30]
[394230062,1763398239019,-1076.46506998,0.00036642,2]
[394230063,1763398239028,-159.52493041,0.00036857,10]
[394230064,1763398239037,-4266.0,0.0003701,7]
[394230065,1763398239046,-512.24870481,0.00037212,30]
[394230066,1763398239055,-500.0,0.00037507,30]
[394230067,1763398239065,-2150.0,0.00037552,2]
[394230068,1763398239074,-988.0,0.00037552,2]
[394230069,1763398239087,-629.0,0.00037552,2]
[394230070,1763398239095,-413.0,0.00037552,2]
[394230071,1763398239104,-413.0,0.00037552,2]
[394230072,1763398239114,-984.76,0.000376,14]
[394230073,1763398239123,-173.04,0.00037685,19]
[394230074,1763398239132,-176.52153032,0.00037885,2]
[394230075,1763398239144,-100000.0,0.00037996,30]
[394230076,1763398239153,-100000.0,0.00037996,30]
[394230077,1763398239162,-40072.710147,0.00037996,120]
[394230078,1763398239171,-100000.0,0.00037996,30]
[394230079,1763398239180,-100000.0,0.00037996,30]
[394230080,1763398239189,-100000.0,0.00037996,30]
[394230081,1763398239199,-100000.0,0.00037996,30]
[394230082,1763398239208,-100000.0,0.00037996,30]
[394230083,1763398239217,-100000.0,0.00037996,30]
[394230084,1763398239226,-40319.0,0.00037996,30]
[394230085,1763398239235,-250.0,0.00037996,10]
[394230086,1763398239245,-250.0,0.00037996,10]
[394230087,1763398239255,-250.0,0.00037996,10]
[394230088,1763398239264,-500.0,0.00038017,30]
[394230089,1763398239273,-155.3,0.000381,7]
[394230090,1763398239282,-150.0,0.00038356,5]
[394230091,1763398239291,-500.0,0.00038878,30]
[394230092,1763398239300,-500.0,0.00039,30]
[394230093,1763398239310,-250.0,0.00039178,5]
[394230094,1763398239319,-2000.0,0.00039258,21]
[394230095,1763398239328,-9773.00895961,0.0003959,2]
[394230096,1763398239338,-400.67432439,0.0003969,3]
[394230097,1763398239347,-151.0,0.0003969,120]
[394230098,1763398239356,-151.0,0.0003969,120]
[394230099,1763398239366,-151.0,0.0003969,120]
[394230100,1763398239376,-151.0,0.0003969,120]
[394230101,1763398239386,-151.0,0.0003969,120]
[394230102,1763398239395,-12805.9040537,0.0003969,3]
[394230103,1763398239405,-209.823232,0.0003969,120]
[394230104,1763398239414,-151.0,0.0003969,120]
[394230105,1763398239423,-151.0,0.0003969,120]
[394230106,1763398239432,-461904.71926002,0.000397,2]
[394230107,1763398239441,-151.0,0.000397,120]
[394230108,1763398239451,-151.0,0.000397,120]
[394230109,1763398239460,-151.0,0.000397,120]
[394230110,1763398239469,-159.234346,0.000397,120]
[394230111,1763398239478,-151.0,0.000397,90]
[394230112,1763398239487,-151.0,0.000397,120]
[394230113,1763398239498,-151.0,0.000397,120]
[394230114,1763398239507,-151.0,0.000397,120]
[394230115,1763398239516,-151.0,0.000397,120]
[394230116,1763398239525,-151.0,0.000397,120]
[394230117,1763398239534,-158.0,0.000397,120]
[394230118,1763398239544,-151.0,0.000397,120]
[394230119,1763398239553,-191.062305,0.000397,120]
[394230120,1763398239563,-155.533912,0.000397,120]
[394230121,1763398239572,-151.0,0.000397,120]
[394230122,1763398239581,-151.0,0.000397,120]
[394230123,1763398239591,-151.0,0.000397,120]
[394230124,1763398239601,-154.622544,0.000397,120]
[394230125,1763398239610,-151.0,0.000397,120]
[394230126,1763398239620,-151.0,0.000397,120]
[394230127,1763398239629,-151.0,0.000397,120]
[394230128,1763398239638,-151.0,0.000397,120]
[394230129,1763398239647,-151.0,0.000397,120]
[394230130,1763398239656,-162.30121,0.000397,120]
[394230131,1763398239666,-151.0,0.000397,120]
[394230132,1763398239675,-151.0,0.000397,120]
[394230133,1763398239683,-151.0,0.000397,120]
[394230134,1763398239693,-151.0,0.000397,120]
[394230135,1763398239702,-500.0,0.00039786,30]
[394230136,1763398239711,-186.84208537,0.000399,120]
[394230137,1763398239720,-5000.0,0.00039996,4]
[394230138,1763398239729,-1479.06,0.0004,30]
[394230139,1763398239738,-1005.45297019,0.0004,30]
[394230140,1763398239749,-350.0,0.0004,5]
[394230141,1763398239758,-500.0,0.00040303,30]
[394230142,1763398239768,-12959.5,0.000405,14]
[394230143,1763398239777,-2150.0,0.00040552,2]
[394230144,1763398239786,-988.0,0.00040552,2]
[394230145,1763398239795,-629.0,0.00040552,2]
[394230146,1763398239804,-413.0,0.00040552,2]
[394230147,1763398239814,-413.0,0.00040552,2]
[394230148,1763398239823,-1076.46506998,0.00040728,28]
[394230149,1763398239832,-450.0,0.00040822,5]
[394230150,1763398239841,-715.35842465,0.00041,120]
[394230151,1763398239850,-195.37324812,0.00041,120]
[394230152,1763398239860,-234.62776723,0.00041,120]
[394230153,1763398239871,-160.32498685,0.00041,120]
[394230154,1763398239880,-164.21721063,0.00041,120]
[394230155,1763398239889,-254.08196722,0.00041,120]
[394230156,1763398239899,-196.29707873,0.00041,120]
[394230157,1763398239908,-207.72132786,0.00041,120]
[394230158,1763398239921,-984.76,0.00041,14]
[394230159,1763398239930,-1280.59040537,0.00041086,3]
[394230160,1763398239939,-500.0,0.00041096,120]
[394230161,1763398239950,-250.0,0.00041096,10]
[394230162,1763398239959,-500.0,0.00041096,31]
[394230163,1763398239968,-500.0,0.00041096,31]
[394230164,1763398239976,-500.0,0.00041096,31]
[394230166,1763398239985,-500.0,0.00041096,31]
[394230168,1763398239995,-500.0,0.00041096,31]
[394230170,1763398240004,-500.0,0.00041096,31]
[394230171,1763398240013,-500.0,0.00041096,31]
[394230172,1763398240022,-500.0,0.00041096,31]
[394230173,1763398240031,-500.0,0.00041096,31]
[394230174,1763398240040,-500.0,0.00041096,31]
[394230175,1763398240049,-500.0,0.00041096,31]
[394230176,1763398240059,-500.0,0.00041096,31]
[394230177,1763398240067,-500.0,0.00041096,31]
[394230178,1763398240076,-500.0,0.00041096,31]
[394230179,1763398240085,-500.0,0.00041096,31]
[394230181,1763398240094,-500.0,0.00041096,31]
[394230182,1763398240103,-500.0,0.00041096,31]
[394230183,1763398240112,-500.0,0.00041096,31]
[394230184,1763398240121,-500.0,0.00041096,31]
[394230185,1763398240131,-500.0,0.00041096,31]
[394230186,1763398240141,-500.0,0.00041096,31]
[394230188,1763398240154,-500.0,0.00041096,31]
[394230191,1763398240238,-261.57592058,0.00041096,31]
[394230192,1763398240252,-500.0,0.00041096,31]
[394230194,1763398240262,-500.0,0.00041096,31]
[394230195,1763398240271,-500.0,0.00041096,31]
[394230196,1763398240281,-500.0,0.00041096,31]
[394230197,1763398240291,-500.0,0.00041096,31]
[394230198,1763398240301,-500.0,0.00041096,31]
[394230199,1763398240311,-500.0,0.00041096,31]
[394230200,1763398240321,-500.0,0.00041096,31]
[394230201,1763398240329,-783.44,0.00041121,2]
[394230202,1763398240338,-509.38,0.00041127,30]
[394230203,1763398240347,-500.0,0.00041272,30]
[394230204,1763398240356,-500.0,0.0004137,120]
[394230205,1763398240366,-1502.76757034,0.00041386,2]
[394230206,1763398240375,-1280.59040537,0.0004143,3]
[394230207,1763398240384,-923665.0052,0.0004144,30]
[394230209,1763398240393,-151.0,0.0004144,120]
[394230211,1763398240402,-151.0,0.0004144,120]
[394230213,1763398240411,-151.0,0.0004144,120]
[394230215,1763398240420,-151.0,0.0004144,90]
[394230217,1763398240429,-151.0,0.0004144,120]
[394230219,1763398240438,-151.0,0.0004144,120]
[394230221,1763398240447,-151.0,0.0004144,120]
[394230223,1763398240456,-151.0,0.0004144,120]
[394230225,1763398240465,-254.468192,0.0004144,120]
[394230227,1763398240474,-151.0,0.0004144,120]
[394230229,1763398240483,-151.0,0.0004144,120]
[394230231,1763398240494,-151.0,0.0004144,120]
[394230233,1763398240504,-151.0,0.0004144,120]
[394230235,1763398240514,-151.0,0.0004144,120]
[394230237,1763398240522,-151.0,0.0004144,120]
[394230239,1763398240531,-151.0,0.0004144,120]
[394230241,1763398240540,-166.567019,0.0004144,120]
[394230243,1763398240548,-151.0,0.0004144,120]
[394230245,1763398240557,-151.0,0.0004144,120]
[394230247,1763398240566,-171.918134,0.0004144,120]
[394230249,1763398240575,-203.96549126,0.00041452,2]
[394230251,1763398240584,-162.20630675,0.00041452,2]
[394230253,1763398240594,-291.97135214,0.00041452,2]
[394230255,1763398240603,-600.0,0.00041556,2]
[394230257,1763398240612,-500.0,0.00041644,120]
[394230259,1763398240621,-500.0,0.00041644,10]
[394230260,1763398240630,-550.0,0.00041644,10]
[394230263,1763398240640,-160.750566,0.00041669,10]
[394230265,1763398240649,-173.04,0.000417,31]
[394230267,1763398240659,-837.00259935,0.00041756,30]
[394230269,1763398240668,-501.75223311,0.00041777,30]
[394230271,1763398240676,-500.0,0.00041796,60]
[394230273,1763398240686,-155.3,0.000418,14]
[394230275,1763398240694,-500.0,0.00041918,120]
[394230277,1763398240704,-600.0,0.00041989,2]
[394230279,1763398240713,-400.67432439,0.00042,7]
[394230281,1763398240723,-22000.0,0.00042141,12]
[394230283,1763398240732,-22000.0,0.00042149,12]
[394230286,1763398240742,-22000.0,0.00042158,12]
[394230289,1763398240752,-22000.0,0.00042167,12]
[394230292,1763398240761,-22000.0,0.00042175,12]
[394230295,1763398240770,-22000.0,0.00042176,12]
[394230298,1763398240779,-22000.0,0.00042184,12]
[394230301,1763398240788,-22000.0,0.00042185,12]
[394230304,1763398240797,-500.0,0.00042192,120]
[394230307,1763398240806,-450.25529448,0.00042192,10]
[394230309,1763398240816,-22000.0,0.00042192,12]
[394230312,1763398240825,-22000.0,0.00042193,12]
[394230315,1763398240834,-715.35842465,0.000422,120]
[394230317,1763398240844,-234.62776723,0.000422,120]
[394230319,1763398240853,-164.21721063,0.000422,120]
[394230322,1763398240867,-254.08196722,0.000422,120]
[394230324,1763398240877,-22000.0,0.00042201,12]
[394230325,1763398240886,-22000.0,0.00042202,12]
[394230327,1763398240895,-22000.0,0.0004221,12]
[394230329,1763398240904,-22000.0,0.00042211,12]
[394230331,1763398240914,-600.0,0.00042422,2]
[394230333,1763398240923,-505.14503263,0.0004244,30]
[394230335,1763398240933,-500.0,0.00042466,120]
[394230337,1763398240945,-650.0,0.00042466,10]
[394230339,1763398240954,-500.0,0.0004274,120]
[394230341,1763398240963,-87783.76,0.00042771,14]
[394230344,1763398240972,-4815.86,0.00042771,14]
[394230346,1763398240981,-135080.15,0.00042771,14]
[394230348,1763398240993,-910.41468264,0.00042855,2]
[394230350,1763398241003,-160.750566,0.00042874,3]
[394230352,1763398241012,-500.0,0.00042892,60]
[394230354,1763398241021,-1479.06,0.000429,30]
[394230356,1763398241030,-12959.5,0.000429,14]
[394230358,1763398241039,-500.0,0.00043014,120]
[394230360,1763398241048,-25776.994234,0.00043071,2]
[394230361,1763398241057,-494.7122674,0.00043071,2]
[394230363,1763398241066,-25776.9942341,0.00043071,2]
[394230365,1763398241075,-1360.4587349,0.00043071,2]
[394230368,1763398241084,-500.0,0.00043137,30]
[394230370,1763398241098,-532.64,0.00043288,120]
[394230372,1763398241111,-750.0,0.00043288,10]
[394230375,1763398241124,-984.76,0.000433,14]
[394230377,1763398241137,-10000.0,0.0004334,2]
[394230378,1763398241147,-150.0,0.00043399,15]
[394230379,1763398241157,-150.0,0.00043399,15]
[394230380,1763398241171,-151.0,0.00043439,30]
[394230381,1763398241183,-157.76742207,0.00043439,30]
[394230382,1763398241196,-150.0,0.00043439,15]
[394230383,1763398241208,-500.0,0.00043439,30]
[394230384,1763398241222,-500.0,0.00043439,30]
[394230385,1763398241234,-500.0,0.00043439,30]
[394230386,1763398241250,-3312.0,0.00043439,30]
[394230387,1763398241263,-500.0,0.00043439,30]
[394230388,1763398241277,-3434.544,0.00043439,30]
[394230389,1763398241289,-500.0,0.00043439,30]
[394230390,1763398241301,-3561.622128,0.00043439,30]
[394230391,1763398241314,-500.0,0.00043439,30]
[394230392,1763398241325,-3693.40214674,0.00043439,30]
[394230393,1763398241336,-500.0,0.00043439,30]
[394230394,1763398241348,-3830.05802617,0.00043439,30]
[394230395,1763398241361,-500.0,0.00043439,30]
[394230396,1763398241372,-3971.77017313,0.00043439,30]
[394230397,1763398241384,-500.0,0.00043439,30]
[394230398,1763398241393,-4118.72566954,0.00043439,30]
[394230399,1763398241403,-4271.11851931,0.00043439,30]
[394230400,1763398241415,-500.0,0.00043439,30]
[394230401,1763398241426,-500.0,0.00043439,30]
[394230402,1763398241437,-500.0,0.00043439,30]
[394230403,1763398241449,-500.0,0.00043439,30]
[394230404,1763398241460,-500.0,0.00043439,30]
[394230405,1763398241472,-500.0,0.00043439,30]
[394230406,1763398241483,-500.0,0.00043439,30]
[394230407,1763398241497,-500.0,0.00043439,30]
[394230408,1763398241516,-500.00000003,0.00043439,30]
[394230409,1763398241529,-3070849.1399,0.0004344,30]
[394230410,1763398241539,-151.0,0.0004344,120]
[394230411,1763398241549,-151.0,0.0004344,120]
[394230412,1763398241559,-151.0,0.0004344,120]
[394230413,1763398241569,-151.0,0.0004344,120]
[394230414,1763398241580,-151.0,0.0004344,120]
[394230415,1763398241593,-151.0,0.0004344,120]
[394230416,1763398241605,-151.0,0.0004344,120]
[394230417,1763398241618,-151.0,0.0004344,120]
[394230418,1763398241628,-151.0,0.0004344,120]
[394230419,1763398241638,-715.35842465,0.000435,120]
[394230420,1763398241648,-234.62776723,0.000435,120]
[394230421,1763398241665,-254.08196722,0.000435,120]
[394230422,1763398241676,-1853.551,0.00043552,2]
[394230423,1763398241687,-988.0,0.00043552,2]
[394230424,1763398241697,-629.0,0.00043552,2]
[394230425,1763398241707,-413.0,0.00043552,2]
[394230426,1763398241718,-413.0,0.00043552,2]
[394230427,1763398241729,-500.0,0.00043559,30]
[394230428,1763398241740,-1000.0,0.000438,90]
[394230429,1763398241755,-500.0,0.00043918,30]
[394230430,1763398241766,-500.0,0.00043947,30]
[394230431,1763398241777,-500.0,0.00043988,60]
[394230432,1763398241789,-200.0,0.00044,120]
[394230433,1763398241800,-155.3,0.000441,14]
[394230434,1763398241812,-199.0,0.00044109,30]
[394230435,1763398241825,-950.00117152,0.0004411,10]
[394230436,1763398241837,-600.0,0.00044299,90]
[394230437,1763398241848,-158.0,0.000443,120]
[394230438,1763398241859,-160.750566,0.00044485,30]
[394230439,1763398241872,-160.750566,0.000446,10]
[394230440,1763398241882,-178.205916,0.000446,10]
[394230441,1763398241893,-215.290936,0.000446,10]
[394230442,1763398241904,-200.938208,0.000446,10]
[394230443,1763398241916,-343.02057741,0.00044629,21]
[394230444,1763398241927,-715.35842465,0.000448,120]
[394230445,1763398241938,-234.62776723,0.000448,120]
[394230446,1763398241949,-254.08196722,0.000448,120]
[394230447,1763398241961,-1076.46506998,0.00044814,28]
[394230448,1763398241971,-160.750566,0.00044829,3]
[394230449,1763398241982,-178.205916,0.00044829,3]
[394230450,1763398241995,-215.290936,0.00044829,3]
[394230451,1763398242008,-200.938208,0.00044829,3]
[394230452,1763398242018,-1566.89,0.00044859,2]
[394230453,1763398242030,-287.12434347,0.00045,120]
[394230454,1763398242041,-295.21624539,0.00045,120]
[394230455,1763398242053,-35000.0,0.00045,38]
[394230456,1763398242063,-20000.0,0.00045,120]
[394230457,1763398242075,-2101.09,0.00045,120]
[394230458,1763398242088,-250.0,0.00045,7]
[394230459,1763398242098,-442.37196155,0.00045084,60]
[394230460,1763398242109,-1479.06,0.000451,30]
[394230461,1763398242221,-12959.5,0.000451,14]
[394230462,1763398242230,-502.46538988,0.00045153,60]
[394230463,1763398242239,-181.77634872,0.0004534,120]
[394230464,1763398242250,-2500.0,0.000454,120]
[394230465,1763398242259,-984.76,0.000454,14]
[394230466,1763398242269,-150637.57820856,0.0004544,30]
[394230484,1763398247108,-150.0,0.00024979,2]
[394230485,1763398247118,-177.0,0.00026979,2]
[394230486,1763398247127,-204.0,0.00028979,2]
[394230487,1763398247137,-150.0,0.00034979,120]
[394230488,1763398247148,-205.84167132,0.00034991,2]
[394230489,1763398247157,-151.0,0.000397,120]
[394230490,1763398247167,-157.611051,0.000397,120]
[394230491,1763398247176,-213.51693234,0.00040699,5]
[394230492,1763398247185,-2085.13,0.0004143,10]
[394230493,1763398247194,-15238.16270569,0.0004544,30]
[394232937,1763398436347,162.0,0.000125,2]
[394234670,1763398501659,2402.61,5e-05,2]
[394234679,1763398501998,2402.61,5.2e-05,2]
[394234689,1763398502339,2402.61,5.3e-05,2]
[394234714,1763398503327,2402.61,5.5e-05,2]
[394234723,1763398503655,2402.61,5.6e-05,2]
[394234730,1763398503950,2402.61,5.8e-05,2]
[394234751,1763398505006,2402.61,5.9e-05,2]
[394234757,1763398505230,2402.61,6.1e-05,2]
[394234778,1763398506157,2402.61,6.2e-05,2]
[394234786,1763398506465,2402.61,6.4e-05,2]
[394234793,1763398506757,2402.61,6.5e-05,2]
[394234800,1763398507041,2402.61,6.7e-05,2]
[394234808,1763398507322,2402.61,6.8e-05,2]
[394234816,1763398507608,2402.61,7e-05,2]
[394234827,1763398508051,2402.61,7.1e-05,2]
[394234837,1763398508433,2402.61,7.3e-05,2]
[394234845,1763398508757,2402.61,7.4e-05,2]
[394234853,1763398509076,2402.61,7.6e-05,2]
[394234856,1763398509358,2402.61,7.7e-05,2]
[394234863,1763398509653,2402.61,7.9e-05,2]
[394234872,1763398509996,2402.61,8e-05,2]
[394234879,1763398510274,2402.61,8.2e-05,2]
[394234887,1763398510558,2402.61,8.3e-05,2]
[394234897,1763398510960,2402.61,8.5e-05,2]
[394234905,1763398511290,2402.61,8.7e-05,2]
[394234914,1763398511644,2402.61,8.8e-05,2]
[394234923,1763398511986,2402.61,9e-05,2]
[394234932,1763398512317,2402.61,9.1e-05,2]
[394234941,1763398512623,2402.61,9.3e-05,2]
[394234949,1763398512945,2402.61,9.4e-05,2]
[394234957,1763398513275,2402.61,9.6e-05,2]
[394234964,1763398513528,2402.61,9.7e-05,2]
[394234971,1763398513987,2402.61,9.9e-05,2]
[394234978,1763398514279,2402.61,0.0001,2]
[394234986,1763398514561,2402.61,0.000102,2]
[394234996,1763398514945,2402.61,0.000103,2]
[394235001,1763398515151,2402.61,0.000105,2]
[394235008,1763398515445,2402.61,0.000106,2]
[394235017,1763398515778,2402.61,0.000108,2]
[394235025,1763398516106,2402.61,0.000109,2]
[394235033,1763398516388,2402.61,0.000111,2]
[394235041,1763398516675,2402.61,0.000112,2]
[394235048,1763398516961,2402.61,0.000114,2]
[394235057,1763398517291,2402.61,0.000115,2]
[394235065,1763398517613,2402.61,0.000117,2]
[394235074,1763398518019,2402.61,0.000118,2]
[394235080,1763398518331,2402.61,0.00012,2]
[394235088,1763398518620,2402.61,0.000121,2]
[394235099,1763398519090,2402.61,0.000123,2]
[394235895,1763398561695,150.15,5e-05,2]
[394235896,1763398562010,150.15,5.5e-05,2]
[394235897,1763398562306,150.15,6e-05,2]
[394235898,1763398562635,150.15,6.5e-05,2]
[394235899,1763398562942,150.15,7e-05,2]
[394235900,1763398563258,150.15,7.5e-05,2]
[394235901,1763398563559,150.15,8e-05,2]
[394235902,1763398563856,150.15,8.5e-05,2]
[394235903,1763398564196,150.15,9e-05,2]
[394235904,1763398564452,150.15,9.5e-05,2]
[394235905,1763398564752,150.15,0.0001,2]
[394235906,1763398565095,150.15,0.000105,2]
[394235907,1763398565430,150.15,0.00011,2]
[394235908,1763398565803,150.15,0.000115,2]
[394235909,1763398566124,150.15,0.00012,2]
[394235910,1763398566484,150.15,0.000125,2]
[394235913,1763398621655,153.0,5e-05,2]
[394235914,1763398622010,153.0,5.2e-05,2]
[394235915,1763398622290,153.0,5.5e-05,2]
[394235916,1763398622576,153.0,5.7e-05,2]
[394235917,1763398622862,153.0,5.9e-05,2]
[394235918,1763398623193,153.0,6.2e-05,2]
[394235919,1763398623521,153.0,6.4e-05,2]
[394235920,1763398623829,153.0,6.6e-05,2]
[394235921,1763398624173,153.0,6.9e-05,2]
[394235922,1763398624464,153.0,7.1e-05,2]
[394235923,1763398624755,153.0,7.3e-05,2]
[394235924,1763398625078,153.0,7.6e-05,2]
[394235925,1763398625391,153.0,7.8e-05,2]
[394235926,1763398625708,153.0,8e-05,2]
[394235927,1763398626065,153.0,8.3e-05,2]
[394235928,1763398626340,153.0,8.5e-05,2]
[394235929,1763398626657,153.0,8.7e-05,2]
[394235930,1763398626960,153.0,9e-05,2]
[394235931,1763398627223,153.0,9.2e-05,2]
[394235932,1763398627513,153.0,9.4e-05,2]
[394235933,1763398627838,153.0,9.7e-05,2]
[394235934,1763398628186,153.0,9.9e-05,2]
[394235936,1763398628510,153.0,0.000101,2]
[394235937,1763398628864,153.0,0.000104,2]
[394235938,1763398629281,153.0,0.000106,2]
[394235939,1763398629572,153.0,0.000108,2]
[394235940,1763398629889,153.0,0.000111,2]
[394235941,1763398630182,153.0,0.000113,2]
[394235942,1763398630571,153.0,0.000115,2]
[394235943,1763398631498,153.0,0.000118,2]
[394235944,1763398631830,153.0,0.00012,2]
[394235945,1763398632103,153.0,0.000122,2]
[394235946,1763398632376,153.0,0.000125,2]
[394235953,1763398717870,499.99999997,0.00032876,120]
[394235954,1763398723078,-580.1885933,0.00013292,2]
[394235958,1763398872536,-174.2310637,0.00013292,2]
[394235959,1763398872562,-116.98272912,0.00013359,2]
[394235960,1763398901950,-153.01727088,0.00013093,2]
[394235961,1763398901971,-55.7689363,0.00013225,2]
[394236115,1763399096948,-153.01727088,0.00012962,2]
[394236116,1763399096969,-150.18926089,0.00013093,2]
[394236904,1763399306998,-150.0,0.00012897,2]
[394236905,1763399307022,-150.0,0.00013027,2]
[394236907,1763399307047,-60.54902504,0.00013159,2]
[394237342,1763399366184,-89.45097496,0.00013159,2]
[394237343,1763399366207,-754.419657,0.00013699,2]
[394237344,1763399366230,-276.31,0.00014486,2]
[394237345,1763399366252,-276.31,0.00014486,2]
[394237346,1763399366275,-177.0,0.00015159,2]
[394237347,1763399366297,-4023.30661873,0.00015363,2]
[394237348,1763399366321,-1200.0,0.00015752,2]
[394237349,1763399366343,-175.0,0.000167,2]
[394237350,1763399366364,-300.0,0.000167,2]
[394237351,1763399366390,-4023.30661873,0.00016701,2]
[394237352,1763399366412,-204.0,0.00017159,2]
[394237353,1763399366443,-4023.30661873,0.00018039,2]
[394237354,1763399366466,-420.0,0.00018246,2]
[394237355,1763399366486,-231.0,0.00019159,2]
[394237356,1763399377571,4023.30661873,0.00019183,2]
[394237357,1763399385768,1456.02016729,0.00019183,2]
[394237572,1763399438654,-21866.7027891,0.000159,2]
[394237573,1763399438664,-2567.28645144,0.00018801,2]
[394237575,1763399438674,-912.0,0.00018801,2]
[394237577,1763399438683,-2567.28645144,0.00018991,2]
[394237579,1763399438696,-2567.28645144,0.00019183,2]
[394237581,1763399438705,-300.0,0.00019376,2]
[394237583,1763399438715,-4023.30661873,0.00019377,2]
[394237585,1763399438724,-495.01262761,0.00019698,2]
[394237587,1763399438733,-25033.0,0.0002,2]
[394237589,1763399438742,-199.26914953,0.00020087,2]